bitfinex/quotes_ETHUSD_20241103
["timestamp","ask_amount","ask_price","bid_price","bid_amount"]
[1730666196427,3.64515,2469.1,2468.5,0.005]
[1730666196630,3.64506,2469.1,2468.6,0.0650778]
[1730666197272,3.64521,2469.0,2468.6,0.0650778]
[1730666197846,3.64537,2468.9,2468.6,0.0650778]
[1730666198146,3.64549,2468.8,2468.6,0.0650778]
[1730666198354,3.64529,2469.0,2468.3,0.005]
[1730666198559,3.64483,2469.3,2468.7,0.0650778]
[1730666199184,3.64409,2469.8,2469.1,0.005]
[1730666199697,8.56678276,2470.1,2469.3,0.005]
[1730666199995,3.15622721,2470.0,2469.3,0.08097658]
[1730666200295,3.15622721,2470.0,2468.9,4.40504]
[1730666200296,3.64453,2469.5,2469.4,0.0650778]
[1730666200643,4.19444376,2469.7,2468.9,0.7648]
[1730666200644,3.64466,2469.4,2468.9,0.7648]
[1730666200887,3.64466,2469.4,2469.0,0.06463615]
[1730666201053,3.64493,2469.2,2469.0,0.06463615]
[1730666201558,3.64505,2469.1,2469.0,0.06463615]
[1730666201775,3.64505,2469.1,2468.6,0.005]
[1730666201945,3.6453,2469.0,2468.7,0.06419045]
[1730666202289,0.6124,2469.4,2468.7,0.06419045]
[1730666202487,3.6449,2469.2,2468.7,0.06419045]
[1730666202691,0.6124,2469.4,2468.7,0.06419045]
[1730666202892,3.64524,2469.0,2468.7,0.06419045]
[1730666203063,3.64499,2469.2,2468.7,0.06419045]
[1730666203064,7.28998,2469.2,2468.7,0.06419045]
[1730666203266,3.64521,2469.0,2468.7,0.06419045]
[1730666204591,3.64517,2469.1,2468.7,0.06419045]
[1730666205189,3.64523,2469.0,2468.7,0.06419045]
[1730666205386,0.72904,2469.0,2468.4,0.7648]
[1730666205587,3.64566,2468.7,2468.5,0.06419045]
[1730666205795,3.64579,2468.6,2468.5,0.06419045]
[1730666206004,3.64579,2468.6,2468.2,0.005]
[1730666206331,3.64602,2468.5,2468.3,0.06419045]
[1730666206502,3.64579,2468.6,2468.3,0.06419045]
[1730666206792,7.29167,2468.6,2468.4,0.06419045]
[1730666207093,4.19444376,2468.9,2468.1,0.7598]
[1730666207094,3.64611,2468.4,2468.1,0.7598]
[1730666207258,3.64611,2468.4,2467.8,0.005]
[1730666207259,7.29232,2468.4,2467.8,0.005]
[1730666207455,3.64633,2468.3,2467.8,0.005]
[1730666207670,3.64644,2468.2,2467.8,0.005]
[1730666207871,3.64633,2468.3,2467.8,0.005]
[1730666208094,3.64643,2468.2,2467.7,0.840838]
[1730666208306,3.64654,2468.1,2467.7,0.7598]
[1730666208592,3.64654,2468.1,2467.6,0.005]
[1730666208802,3.64682,2467.9,2467.6,0.005]
[1730666208991,3.64682,2467.9,2467.4,0.7598]
[1730666208992,3.64633,2468.3,2467.7,0.005]
[1730666209203,3.64675,2468.0,2467.4,0.7648]
[1730666209410,3.6466,2468.1,2467.4,0.7648]
[1730666209411,3.6466,2468.1,2467.6,0.005]
[1730666209998,3.64671,2468.0,2467.6,0.005]
[1730666210237,3.64712,2467.7,2467.2,0.005]
[1730666210529,3.64727,2467.6,2467.2,0.005]
[1730666210732,3.64712,2467.7,2467.0,0.005]
[1730666210946,0.6124,2467.9,2467.0,0.005]
[1730666210947,3.64752,2467.5,2467.0,0.005]
[1730666211090,4.25932,2467.9,2467.1,3.65289]
[1730666211401,7.84126376,2468.0,2467.3,0.8035]
[1730666211611,3.64698,2467.8,2467.3,0.8035]
[1730666211820,3.64698,2467.8,2467.4,0.06474152]
[1730666212733,4.19444376,2468.4,2467.4,0.06474152]
[1730666212898,3.64714,2467.7,2467.4,0.06474152]
[1730666213240,3.64714,2467.7,2467.5,0.06533322]
[1730666213526,3.64714,2467.7,2467.3,0.8035]
[1730666213713,3.64714,2467.7,2467.6,0.06533322]
[1730666213913,3.64714,2467.7,2467.3,0.8035]
[1730666214118,3.64714,2467.7,2467.6,0.06533322]
[1730666214333,3.6471,2467.8,2467.3,0.8035]
[1730666214832,3.64691,2467.9,2467.4,0.06533322]
[1730666215000,3.64708,2467.8,2467.4,0.06533322]
[1730666215197,3.64713,2467.7,2467.4,0.06533322]
[1730666216932,7.29435,2467.7,2467.4,0.06533322]
[1730666217237,3.6469,2467.9,2467.4,0.06533322]
[1730666217808,3.64704,2467.8,2467.4,0.06533322]
[1730666218026,3.64712,2467.7,2467.4,0.06533322]
[1730666218518,3.64741,2467.5,2467.4,0.06533322]
[1730666218726,3.64729,2467.6,2467.4,0.06533322]
[1730666219038,3.64741,2467.5,2467.4,0.06533322]
[1730666219195,3.64729,2467.6,2467.0,0.7985]
[1730666219397,7.29466,2467.6,2467.1,0.06547108]
[1730666219597,3.64729,2467.6,2467.1,0.06547108]
[1730666220023,7.29466,2467.6,2467.1,0.06547108]
[1730666220220,3.64697,2467.8,2467.1,0.07047108]
[1730666220430,8.45295376,2468.4,2467.6,0.7985]
[1730666220648,3.64564,2468.7,2467.9,3.65181]
[1730666220802,3.64586,2468.6,2467.9,3.65181]
[1730666221008,3.64586,2468.6,2468.0,0.06553191]
[1730666221406,3.64596,2468.5,2468.0,0.06553191]
[1730666221713,3.64609,2468.4,2468.0,0.06553191]
[1730666222110,3.64626,2468.3,2468.0,0.06553191]
[1730666222512,3.64646,2468.2,2468.0,0.06553191]
[1730666222928,3.64646,2468.2,2467.7,0.005]
[1730666223117,3.64646,2468.2,2468.1,0.06524403]
[1730666223464,0.6124,2468.3,2467.6,0.7985]
[1730666223771,0.6124,2468.3,2467.4,0.08104237]
[1730666223772,0.6124,2469.1,2468.2,0.005]
[1730666224060,4.25749,2469.1,2468.2,3.65129]
[1730666224214,3.6455,2468.8,2468.2,0.40666849]
[1730666224416,3.64571,2468.7,2468.2,0.005]
[1730666224616,1.82207038,2469.1,2468.0,0.7985]
[1730666224617,3.64638,2468.2,2468.0,0.7985]
[1730666224815,3.64638,2468.2,2467.8,0.005]
[1730666224816,3.64652,2468.1,2467.7,0.7985]
[1730666225123,3.64567,2468.7,2467.7,0.7985]
[1730666225124,7.29347,2468.0,2467.7,0.7985]
[1730666225348,3.64685,2467.9,2467.7,0.7985]
[1730666225833,3.64697,2467.8,2467.4,0.7625]
[1730666226018,3.64677,2468.0,2467.4,0.7625]
[1730666226365,3.64698,2467.8,2467.4,0.7625]
[1730666226742,3.64698,2467.8,2467.5,0.06516697]
[1730666227217,3.64625,2468.3,2467.5,0.06516697]
[1730666227218,3.64649,2468.2,2467.5,0.06516697]
[1730666227420,3.64649,2468.2,2467.4,8.05744]
[1730666227421,3.64654,2468.1,2467.4,8.05744]
[1730666227652,3.64625,2468.3,2467.6,3.65225]
[1730666227861,3.64588,2468.6,2467.9,0.7575]
[1730666228157,3.64588,2468.6,2468.0,0.07016697]
[1730666228344,3.64647,2468.2,2468.0,0.06516697]
[1730666228549,3.64618,2468.4,2468.0,0.06516697]
[1730666228720,3.64597,2468.5,2468.0,0.06516697]
[1730666228922,3.64597,2468.5,2467.9,4.4853124]
[1730666229224,3.64564,2468.7,2468.0,0.005]
[1730666229454,3.64564,2468.7,2467.9,4.4853124]
[1730666229455,3.6453,2469.0,2468.2,0.005]
[1730666229654,3.64513,2469.1,2468.5,0.005]
[1730666229857,3.64525,2469.0,2468.5,0.005]
[1730666230184,7.29025,2469.1,2468.6,0.06516697]
[1730666230324,3.64524,2469.0,2468.6,0.06516697]
[1730666231223,3.64485,2469.3,2468.7,3.65054]
[1730666231458,3.64483,2469.3,2468.8,0.7575]
[1730666231632,3.64483,2469.3,2468.9,0.06516697]
[1730666231966,3.64514,2469.1,2468.9,0.06516697]
[1730666232322,3.64507,2469.1,2468.9,0.06516697]
[1730666232759,3.6452,2469.0,2468.9,0.06516697]
[1730666233056,3.6452,2469.0,2468.5,0.005]
[1730666233057,4.374227,2469.0,2468.5,0.7575]
[1730666233262,3.645,2469.2,2468.6,3.71594697]
[1730666233461,1.26692229,2469.6,2468.6,0.07016697]
[1730666233771,1.26692229,2469.6,2469.1,0.7625]
[1730666234139,1.26692229,2469.6,2469.2,3.79106158]
[1730666234475,1.26692229,2469.6,2469.2,0.06516697]
[1730666234476,3.64457,2469.5,2469.2,0.06516697]
[1730666234766,4.91133229,2469.6,2469.2,0.06516697]
[1730666234969,1.26692229,2469.6,2469.2,0.06516697]
[1730666235342,4.91132229,2469.6,2469.2,0.06516697]
[1730666235973,3.64475,2469.3,2469.2,0.06516697]
[1730666236148,3.64447,2469.5,2469.2,0.06516697]
[1730666236573,3.64483,2469.3,2468.8,0.7575]
[1730666236934,3.64475,2469.4,2468.8,0.7575]
[1730666237164,7.28948,2469.4,2468.8,0.7575]
[1730666237356,7.28948,2469.4,2468.8,4.40297]
[1730666237357,3.64473,2469.4,2468.8,4.40297]
[1730666237636,3.64473,2469.4,2468.8,4.40298]
[1730666237843,8.55575229,2469.6,2468.9,3.73134416]
[1730666238043,4.91132229,2469.6,2468.9,3.73134416]
[1730666238361,3.64477,2469.3,2468.9,0.005]
[1730666238680,3.64477,2469.3,2468.8,0.7575]
[1730666239174,3.64505,2469.2,2468.8,0.7575]
[1730666239378,0.364505,2469.2,2468.8,0.7575]
[1730666239546,3.64548,2468.9,2468.4,0.7575]
[1730666239881,0.364505,2469.2,2468.4,0.7575]
[1730666239882,3.64551,2468.8,2468.4,0.7575]
[1730666240041,3.64542,2468.9,2468.4,0.7575]
[1730666240762,3.64533,2469.0,2468.4,0.7575]
[1730666240971,3.6455,2468.8,2468.4,0.7575]
[1730666241409,3.64533,2469.0,2468.4,0.7575]
[1730666241575,3.64533,2469.0,2468.5,0.06231871]
[1730666241780,3.64535,2468.9,2468.5,0.06231871]
[1730666241967,3.64539,2468.9,2468.5,0.06231871]
[1730666242386,1.87932229,2469.6,2468.8,0.005]
[1730666242585,1.26692229,2469.6,2469.2,3.64975]
[1730666242788,1.26692229,2469.6,2469.4,3.64958]
[1730666242958,1.26692229,2469.6,2469.4,7.2941]
[1730666243158,1.26692229,2469.6,2469.5,3.70679492]
[1730666243390,1.26692229,2469.6,2469.5,4.47639492]
[1730666243794,1.26692229,2469.6,2469.5,4.55737302]
[1730666244294,1.26692229,2469.6,2469.5,0.83193492]
[1730666245360,1.26692229,2469.6,2469.5,4.47639492]
[1730666245898,1.26692229,2469.6,2469.5,0.83193492]
[1730666246306,2.0348263,2470.0,2469.5,0.83193492]
[1730666246307,5.6786163,2470.0,2469.5,0.83193492]
[1730666246599,6.61087693,2470.0,2469.5,0.06233492]
[1730666246783,3.64396,2469.9,2469.5,0.06233492]
[1730666246991,2.96704693,2470.0,2469.2,0.7696]
[1730666247190,3.64444,2469.6,2469.2,0.7696]
[1730666247361,3.64469,2469.4,2469.2,0.7696]
[1730666247567,7.2894,2469.4,2469.0,0.005]
[1730666247780,4.373183,2469.6,2469.0,0.005]
[1730666248008,3.64412,2469.8,2469.1,3.64498]
[1730666248009,3.64415,2469.8,2469.1,3.64498]
[1730666248313,3.64415,2469.8,2469.0,0.08600083]
[1730666248314,3.64434,2469.6,2469.0,3.65012]
[1730666248675,3.64411,2469.8,2469.0,3.65012]
[1730666248676,3.64417,2469.7,2469.0,7.29521]
[1730666248902,3.64417,2469.7,2469.0,3.65009]
[1730666249498,3.64441,2469.6,2469.0,0.005]
[1730666250515,3.64455,2469.5,2469.0,0.005]
[1730666251217,3.64387,2469.9,2469.0,0.005]
[1730666251470,3.64463,2469.4,2469.0,0.005]
[1730666252482,3.64446,2469.5,2469.0,0.005]
[1730666252702,3.64442,2469.6,2469.0,0.005]
[1730666252906,3.64463,2469.4,2469.0,0.005]
[1730666253107,3.64463,2469.4,2468.9,0.7696]
[1730666253108,8.10997205,2469.5,2468.6,0.7746]
[1730666253323,3.64545,2468.9,2468.6,0.7696]
[1730666253525,3.85311205,2469.2,2468.6,0.7696]
[1730666253826,3.64516,2469.1,2468.6,0.7696]
[1730666254185,3.64523,2469.0,2468.6,0.7696]
[1730666254820,3.64523,2469.0,2467.8,3.0]
[1730666254821,0.55,2468.8,2467.7,0.7696]
[1730666255003,0.6124,2468.4,2467.7,0.7696]
[1730666255233,3.64664,2468.1,2467.7,0.7696]
[1730666255413,3.64683,2467.9,2467.7,0.7696]
[1730666255624,3.64697,2467.8,2467.4,0.005]
[1730666255819,3.64697,2467.8,2466.3,3.85311205]
[1730666255820,3.64771,2467.3,2467.2,0.005]
[1730666256120,7.50064205,2467.5,2466.8,0.005]
[1730666256316,3.64787,2467.2,2466.8,0.005]
[1730666256678,3.64803,2467.1,2466.9,0.05683321]
[1730666256876,7.50098205,2467.2,2466.9,0.05683321]
[1730666257180,3.64803,2467.1,2466.9,0.05683321]
[1730666257403,3.64815,2467.0,2466.9,0.05683321]
[1730666257826,3.64846,2466.8,2466.4,0.8109]
[1730666258123,3.64846,2466.8,2466.5,0.05700357]
[1730666258310,3.64877,2466.6,2466.5,0.05700357]
[1730666258505,3.64901,2466.5,2466.1,0.8159]
[1730666258688,3.64922,2466.3,2465.9,0.005]
[1730666259339,3.64895,2466.5,2465.9,0.005]
[1730666259340,3.64905,2466.4,2465.9,0.005]
[1730666259542,3.64907,2466.4,2465.9,0.005]
[1730666259700,3.64919,2466.3,2465.9,0.005]
[1730666259900,3.64934,2466.2,2465.8,0.8109]
[1730666260147,4.013336,2466.8,2465.8,0.8109]
[1730666260148,3.6496,2466.1,2465.8,0.8109]
[1730666260313,7.29918,2466.1,2465.8,0.8109]
[1730666260512,3.64964,2466.0,2465.5,0.8159]
[1730666260739,3.64958,2466.1,2465.5,0.8159]
[1730666260947,4.26136,2466.5,2465.5,0.8159]
[1730666260948,3.64915,2466.4,2465.5,0.8159]
[1730666261109,3.64972,2466.0,2465.5,0.8159]
[1730666261455,3.64987,2465.9,2465.5,0.8159]
[1730666261745,3.64995,2465.8,2465.5,0.8109]
[1730666262243,7.29998,2465.8,2465.5,0.8109]
[1730666262413,3.64995,2465.8,2465.5,0.8109]
[1730666262614,3.6501,2465.7,2465.3,0.0681527]
[1730666262832,3.64995,2465.8,2465.3,0.0681527]
[1730666263139,3.64964,2466.0,2465.3,3.7188127]
[1730666263304,3.64941,2466.2,2465.6,3.65514]
[1730666263714,0.6124,2466.5,2465.4,0.005]
[1730666263715,3.64967,2466.0,2465.4,0.005]
[1730666263914,7.30001,2465.8,2465.4,0.005]
[1730666264206,3.64967,2466.0,2465.4,0.005]
[1730666264534,3.6498,2465.9,2465.4,0.005]
[1730666265253,7.29943,2466.0,2465.4,0.005]
[1730666265556,7.2994,2466.0,2465.4,3.6555]
[1730666265715,3.64979,2465.9,2465.4,3.6555]
[1730666266439,7.29944,2466.0,2465.4,3.6555]
[1730666266601,3.64978,2465.9,2465.4,3.6555]
[1730666266807,3.64978,2465.9,2465.3,0.0631527]
[1730666266808,0.729945,2465.9,2465.3,0.0631527]
[1730666267054,3.65052,2465.4,2465.3,0.0631527]
[1730666267606,4.26292,2465.4,2465.3,0.0631527]
[1730666267844,8.4740424,2465.4,2465.3,0.0631527]
[1730666269567,3.65128,2464.9,2464.6,0.005]
[1730666269844,3.65128,2464.9,2464.4,0.8159]
[1730666270050,3.65113,2465.0,2464.4,0.8159]
[1730666270521,3.65135,2464.9,2464.4,0.8159]
[1730666270848,3.65156,2464.7,2464.4,0.8159]
[1730666271019,3.65156,2464.7,2464.1,0.8326846]
[1730666271020,0.730291,2464.7,2464.1,0.8326846]
[1730666271224,3.65209,2464.4,2464.1,0.8326846]
[1730666271612,3.65209,2464.4,2464.2,0.05684958]
[1730666271813,3.65215,2464.3,2464.2,0.05684958]
[1730666272856,3.6523,2464.2,2464.1,0.0615846]
[1730666273025,4.747954,2464.2,2464.1,0.0615846]
[1730666273914,3.65215,2464.3,2464.1,0.0615846]
[1730666274154,3.6519,2464.5,2464.1,0.0615846]
[1730666274559,4.381941,2464.7,2464.2,0.05684958]
[1730666275056,3.65187,2464.5,2464.2,0.05684958]
[1730666275250,3.6515,2464.8,2464.3,4.42324]
[1730666275638,3.65156,2464.7,2464.4,0.05750792]
[1730666276016,3.6515,2464.8,2464.4,0.05750792]
[1730666276917,3.65156,2464.7,2464.4,0.05750792]
[1730666278952,3.65135,2464.9,2464.4,0.05750792]
[1730666279129,10.8768524,2465.3,2464.4,0.05750792]
[1730666279130,3.65078,2465.3,2464.6,3.65169]
[1730666279333,3.65076,2465.3,2464.7,3.65147]
[1730666279535,0.005,2465.8,2464.7,3.65147]
[1730666279536,3.64957,2466.1,2465.5,3.65033]
[1730666279760,0.6124,2466.4,2465.5,0.7711]
[1730666279761,3.64966,2466.0,2465.5,0.7711]
[1730666280067,4.014626,2466.0,2465.6,0.05750792]
[1730666280268,4.26153,2466.4,2465.8,3.64983]
[1730666280483,3.64919,2466.3,2465.7,3.64996]
[1730666280632,3.64927,2466.3,2465.9,0.05780853]
[1730666280933,3.64927,2466.3,2466.0,0.05780853]
[1730666281143,4.2211224,2466.6,2465.6,3.6552]
[1730666281442,7.29917,2466.1,2465.5,4.42137]
[1730666281672,3.64978,2465.9,2465.5,0.7711]
[1730666281832,3.6224,2466.1,2465.2,0.7761]
[1730666282033,3.65022,2465.7,2465.2,0.7761]
[1730666282280,3.65022,2465.7,2465.2,4.42691]
[1730666282438,3.65032,2465.6,2465.2,0.7711]
[1730666282786,3.6224,2466.1,2465.2,0.7711]
[1730666282787,3.64973,2466.0,2465.4,3.6505]
[1730666283066,3.64978,2465.9,2465.4,3.6505]
[1730666283677,3.64973,2466.0,2465.4,7.30094]
[1730666284032,3.64973,2466.0,2465.4,3.65042]
[1730666284230,4.075943,2466.0,2465.4,3.65041]
[1730666284973,3.64983,2465.9,2465.4,3.65041]
[1730666285381,0.426213,2466.0,2465.5,3.65026]
[1730666285585,3.64913,2466.4,2465.9,3.6497]
[1730666285938,3.64883,2466.6,2466.1,3.64943]
[1730666286163,3.64905,2466.4,2465.8,3.64982]
[1730666286348,3.64884,2466.6,2465.7,0.005]
[1730666286588,3.64884,2466.6,2466.0,4.47521]
[1730666286776,0.6124,2466.7,2466.0,0.8257]
[1730666286777,3.64904,2466.4,2466.0,0.8257]
[1730666287093,4.13238224,2466.5,2466.1,0.05704454]
[1730666287261,7.78141224,2466.5,2466.1,0.05704454]
[1730666287448,0.48335224,2466.5,2466.1,3.70652454]
[1730666287645,4.13232224,2466.5,2466.1,0.05704454]
[1730666287953,7.78130224,2466.5,2466.1,0.05704454]
[1730666288168,4.13232224,2466.5,2466.1,0.05704454]
[1730666288685,3.64897,2466.5,2466.1,0.05704454]
[1730666288982,3.64922,2466.3,2466.1,0.05704454]
[1730666289147,3.64896,2466.5,2465.9,3.64967]
[1730666289345,4.26107,2466.7,2466.2,0.05693895]
[1730666289548,3.64867,2466.7,2466.1,3.64937]
[1730666289849,3.64892,2466.5,2466.3,0.05693895]
[1730666290057,3.64884,2466.6,2466.2,0.8257]
[1730666290263,3.64884,2466.6,2466.4,0.05693895]
[1730666290479,3.64884,2466.6,2466.2,0.8257]
[1730666290649,3.64884,2466.6,2466.5,0.05693895]
[1730666290870,3.64884,2466.6,2466.2,0.8257]
[1730666291187,4.49168066,2466.6,2465.9,3.65469]
[1730666291345,4.49168066,2466.6,2466.3,0.05693895]
[1730666291687,4.49168066,2466.6,2466.1,3.64937]
[1730666291688,8.14050066,2466.6,2466.1,3.64937]
[1730666291893,8.14050066,2466.6,2466.4,0.05693895]
[1730666292054,0.81405007,2466.5,2465.9,3.65468]
[1730666292255,3.64882,2466.6,2466.5,0.05693895]
[1730666292591,3.64882,2466.6,2466.5,0.05688582]
[1730666292756,3.64882,2466.6,2466.0,3.64948]
[1730666292956,3.64869,2466.7,2466.5,0.05688582]
[1730666293154,3.64869,2466.7,2465.9,0.005]
[1730666293379,0.4013536,2466.6,2466.2,3.64931]
[1730666293954,0.4013536,2466.6,2466.3,0.05688582]
[1730666294481,4.0501136,2466.6,2466.0,3.64951]
[1730666294801,3.64889,2466.5,2466.4,0.05688582]
[1730666294992,0.4013536,2466.6,2466.1,3.64941]
[1730666295207,3.6478,2467.3,2466.5,0.005]
[1730666295503,3.86215873,2467.7,2466.5,0.005]
[1730666295504,3.64727,2467.6,2467.1,3.64789]
[1730666295701,4.25961,2467.7,2466.8,0.8257]
[1730666295702,4.47455873,2467.7,2466.8,0.8257]
[1730666295996,3.64797,2467.2,2466.9,0.05679243]
[1730666296198,4.012727,2467.2,2466.9,0.05679243]
[1730666296407,0.364797,2467.2,2466.9,0.05679243]
[1730666297098,0.364797,2467.2,2466.9,3.70507243]
[1730666297300,0.364797,2467.2,2466.9,0.05679243]
[1730666297906,4.012697,2467.2,2466.9,0.05679243]
[1730666298211,4.0493997,2467.1,2466.5,4.47959]
[1730666298383,3.64817,2467.0,2466.5,4.47959]
[1730666299065,3.64841,2466.9,2466.5,0.8257]
[1730666299268,3.64841,2466.9,2466.4,3.64899]
[1730666299466,3.64846,2466.8,2466.2,0.8257]
[1730666299671,1.0136697,2467.1,2466.2,0.8257]
[1730666299672,0.364846,2466.7,2466.4,3.64904]
[1730666299888,3.64847,2466.8,2466.2,0.8257]
[1730666300072,3.64847,2466.8,2466.3,3.64916]
[1730666301003,3.6487,2466.7,2466.1,0.005]
[1730666301204,3.6487,2466.7,2466.2,3.64933]
[1730666301403,3.64875,2466.6,2466.1,7.29877]
[1730666301704,3.64875,2466.6,2466.3,0.05615094]
[1730666302012,3.64875,2466.6,2466.1,3.64937]
[1730666302013,4.378481,2466.6,2466.4,0.05615094]
[1730666302392,4.378481,2466.6,2465.4,3.65042]
[1730666302393,3.64966,2466.0,2465.4,3.65042]
[1730666302607,3.64933,2466.2,2465.3,3.65565]
[1730666302608,3.64933,2466.2,2465.3,0.005]
[1730666302788,3.64915,2466.4,2465.8,0.005]
[1730666303107,3.64915,2466.4,2465.8,3.65492]
[1730666303108,7.29833,2466.4,2465.8,3.65492]
[1730666303317,7.29833,2466.4,2465.7,0.7748]
[1730666303318,3.64934,2466.2,2465.7,0.7748]
[1730666303513,0.8640461,2466.4,2465.7,4.42483]
[1730666303514,3.64921,2466.3,2465.7,4.42483]
[1730666303804,3.64934,2466.2,2465.7,0.7748]
[1730666304375,3.64964,2466.0,2465.6,0.005]
[1730666304973,3.64938,2466.2,2465.4,0.7748]
[1730666305210,4.21373275,2466.3,2465.4,0.7748]
[1730666305211,3.64978,2465.9,2465.4,0.7748]
[1730666305721,3.65001,2465.8,2465.4,0.7748]
[1730666306209,0.78631128,2466.1,2465.1,0.7798]
[1730666306210,3.65034,2465.6,2465.1,0.7798]
[1730666306412,3.65052,2465.4,2465.1,0.7798]
[1730666306716,3.65033,2465.6,2465.1,0.7798]
[1730666306878,3.65045,2465.5,2465.1,0.7798]
[1730666307081,3.65053,2465.4,2465.1,0.7798]
[1730666307275,3.65075,2465.3,2465.1,0.005]
[1730666307475,3.65053,2465.4,2465.1,0.005]
[1730666307883,7.30116,2465.4,2465.1,0.005]
[1730666308387,4.4171493,2465.4,2465.1,0.005]
[1730666308714,3.65089,2465.2,2464.9,0.7748]
[1730666309217,3.65096,2465.1,2464.9,0.7748]
[1730666309402,3.65102,2465.1,2464.7,0.005]
[1730666309572,3.65102,2465.1,2465.0,0.04880791]
[1730666309772,3.65102,2465.1,2464.7,0.005]
[1730666309972,4.016062,2465.1,2465.0,0.04880791]
[1730666310213,4.016062,2465.1,2464.5,0.005]
[1730666310214,3.65125,2465.0,2464.5,0.005]
[1730666310381,3.6513,2464.9,2464.5,0.005]
[1730666310581,3.6513,2464.9,2464.6,0.04880791]
[1730666311229,4.21373275,2465.5,2464.8,0.005]
[1730666311381,3.65078,2465.3,2464.9,0.7748]
[1730666311577,0.42137328,2465.4,2464.6,0.005]
[1730666311922,0.42137328,2465.4,2465.0,0.04938474]
[1730666311923,3.65096,2465.1,2465.0,0.04938474]
[1730666312092,3.6512,2465.0,2464.6,0.7748]
[1730666312413,3.65107,2465.1,2464.6,0.7748]
[1730666313320,3.65107,2465.1,2464.7,3.65155]
[1730666313515,3.6507,2465.3,2464.8,3.6514]
[1730666313681,8.4951056,2465.3,2464.8,3.6514]
[1730666313875,4.8443256,2465.3,2464.8,3.6514]
[1730666314080,8.4951356,2465.3,2464.8,3.6514]
[1730666314586,3.65083,2465.2,2464.8,3.6514]
[1730666314785,3.65083,2465.2,2464.6,8.07809]
[1730666314981,3.65083,2465.2,2464.6,4.42641]
[1730666315182,3.65059,2465.4,2464.9,3.65122]
[1730666315451,3.65059,2465.4,2464.8,3.65633]
[1730666315582,3.65059,2465.4,2464.8,7.30764]
[1730666315783,3.65068,2465.3,2464.8,0.005]
[1730666316013,3.65068,2465.3,2464.8,3.65638]
[1730666316215,7.30147,2465.3,2464.8,0.005]
[1730666316528,8.45299028,2465.3,2464.8,0.005]
[1730666316814,4.80220028,2465.3,2464.9,0.04938474]
[1730666317636,3.65111,2465.0,2464.9,0.04938474]
[1730666318082,3.65173,2464.6,2464.2,0.7993]
[1730666318286,3.65173,2464.6,2464.1,0.0615846]
[1730666318287,3.652,2464.4,2464.1,0.0615846]
[1730666318488,3.652,2464.4,2464.3,0.04938474]
[1730666318888,3.65187,2464.5,2464.1,0.0615846]
[1730666319144,4.43843028,2464.5,2464.3,0.04938474]
[1730666319429,3.652,2464.4,2464.1,0.0615846]
[1730666320130,3.65227,2464.3,2464.1,0.0615846]
[1730666320430,0.78656028,2464.5,2464.1,0.0615846]
[1730666320431,4.43841028,2464.5,2464.1,0.0615846]
[1730666320585,3.6521,2464.4,2464.1,0.0615846]
[1730666320790,3.65215,2464.3,2464.1,0.0615846]
[1730666321109,3.6523,2464.2,2464.1,0.0615846]
[1730666321314,3.65215,2464.3,2464.1,0.0615846]
[1730666321840,7.30438,2464.3,2464.1,0.0615846]
[1730666322195,3.65215,2464.3,2464.1,0.0615846]
[1730666323411,4.017515,2464.2,2464.1,0.0615846]
[1730666324049,5.179915,2464.2,2464.1,0.0615846]
[1730666325114,4.629915,2464.2,2464.1,0.0615846]
[1730666325318,3.65201,2464.4,2464.1,0.11122951]
[1730666325540,3.65216,2464.3,2464.1,0.0615846]
[1730666325748,3.65216,2464.3,2464.2,0.05072563]
[1730666330560,3.65178,2464.6,2464.2,0.05072563]
[1730666331059,7.30357,2464.6,2464.2,0.05072563]
[1730666331217,3.65207,2464.4,2464.2,0.05072563]
[1730666331866,3.65186,2464.5,2464.2,0.05072563]
[1730666332660,5.06915251,2464.6,2464.2,0.05072563]
[1730666332661,3.65201,2464.4,2464.2,0.05072563]
[1730666332960,5.06915251,2464.6,2464.2,0.05072563]
[1730666332961,3.65186,2464.5,2464.2,0.05072563]
[1730666333159,3.65204,2464.4,2464.2,0.05072563]
[1730666333366,3.65215,2464.3,2464.2,0.05072563]
[1730666335341,3.65215,2464.3,2464.1,0.0615846]
[1730666335556,3.6523,2464.2,2464.1,0.0615846]
[1730666335735,3.65215,2464.3,2464.1,0.0615846]
[1730666336327,8.07205514,2464.2,2464.1,0.0615846]
[1730666337937,11.07205514,2464.2,2464.1,0.0615846]
[1730666340491,7.2023,2464.2,2464.1,0.0615846]
[1730666340779,3.65225,2464.3,2464.1,0.0615846]
[1730666341284,3.6523,2464.2,2464.1,0.0615846]
[1730666341438,7.52205514,2464.2,2464.1,0.0615846]
[1730666341642,10.52205514,2464.2,2464.1,0.0615846]
[1730666341878,11.13445514,2464.2,2464.1,0.0615846]
[1730666342178,11.68445514,2464.2,2464.1,0.0615846]
[1730666342387,13.33136691,2464.2,2464.1,0.0615846]
[1730666344487,13.34636691,2464.2,2464.1,0.0615846]
[1730666345041,13.33136691,2464.2,2464.1,0.0615846]
[1730666346054,1.11741251,2464.3,2464.1,0.0615846]
[1730666346398,3.65215,2464.3,2464.2,0.04923135]
[1730666347597,3.65147,2464.8,2464.3,3.65212]
[1730666347752,3.6512,2465.0,2464.4,3.652]
[1730666347957,3.6512,2465.0,2464.5,3.70593981]
[1730666348289,3.651,2465.1,2464.6,3.65167]
[1730666348660,3.651,2465.1,2464.5,3.70593981]
[1730666348661,3.65128,2464.9,2464.7,0.0490608]
[1730666348870,3.65111,2465.0,2464.7,0.0490608]
[1730666349069,3.65111,2465.0,2464.5,3.65681]
[1730666349300,3.65111,2465.0,2464.8,0.04888623]
[1730666349506,3.65111,2465.0,2464.5,3.65681]
[1730666349678,3.65111,2465.0,2464.9,0.04887812]
[1730666349886,4.20134,2464.9,2464.3,0.8251]